Cogmind - Beta 14 @@@ ROGUE MODE // 2024.10.02 @ 17:57:53 Player: Dazz Result: Destroyed by D-53 Grenadier with Mini Grenade Launcher Performance ------------- Evolutions (0) 0 Regions Visited (2) 400 Robots Destroyed (20) 100 Value Destroyed (466) 466 Prototype IDs (0) 0 Alien Tech Used (0) 0 Bonus (0) 0 TOTAL SCORE: 966 Bonus ------- None Cogmind --------- Core Integrity 0/250 Matter 229/300 Energy 100/100 System Corruption 0% Temperature Cool (0) Movement Rolling (100) Location -10/Mines Parts ------- > --- POWER (1) -------- (None) > --- PROPULSION (2) --- Compact Wheel > --- UTILITY (2) ------ Small Storage Unit > --- WEAPON (2) ------- (None) > --- INVENTORY (8) ---- Structural Scanner Sensor Array Improved Terrain Scanner Assault Rifle Assault Rifle Light Assault Rifle Light Assault Rifle Peak State ------------ > --- POWER ------------ Light Nuclear Core > --- PROPULSION ------- Compact Wheel > --- UTILITY ---------- Small Storage Unit Improved Terrain Scanner > --- WEAPON ----------- Assault Rifle Assault Rifle > --- INVENTORY -------- Structural Scanner Sensor Array Improved Terrain Scanner Light Assault Rifle Light Assault Rifle Grenade Launcher Rocket Launcher [Rating: 11] Favorites ----------- Power Ion Engine Engine Ion Engine Power Core Light Nuclear Core Propulsion Compact Wheel Wheel Compact Wheel Utility Small Storage Unit Device Improved Terrain Scanner Storage Small Storage Unit Weapon Light Assault Rifle Ballistic Gun Light Assault Rifle Launcher Grenade Launcher Build | -11 -10 -10 ------- Run | Yrd Mat Min Slots Evolved . | . . . Power . | . . . Propulsion . | . . . Utility . | . . . Weapon . | . . . Parts Attached 20 | 7 11 2 Power 2 | 1 1 . Engine 1 | 1 . . Core 1 | . 1 . Reactor . | . . . Propulsion 4 | 2 2 . Treads . | . . . Leg . | . . . Wheel 4 | 2 2 . Hover . | . . . Flight . | . . . Utility 2 | 2 . . Device 1 | 1 . . Storage 1 | 1 . . Processor . | . . . Hackware . | . . . Protection . | . . . Artifact . | . . . Weapon 12 | 2 8 2 Energy Gun . | . . . Energy Cannon . | . . . Ballistic Gun 8 | 2 6 . Ballistic Cannon . | . . . Launcher 4 | . 2 2 Special Weapon . | . . . Impact Weapon . | . . . Slashing Weapon . | . . . Piercing Weapon . | . . . Special Melee Weapon . | . . . Unidentified Prototypes . | . . . Parts Lost 6 | . 2 4 Power 1 | . . 1 Propulsion 2 | . 2 . Utility 1 | . . 1 Weapon 2 | . . 2 Highest Loss Streak 4 | . 1 4 To Critical Strikes . | . . . Average Slot Usage (%) 95 | . 95 81 Engine 13 | . 13 . Wheel 24 | . 25 14 Device 13 | . 14 10 Storage 14 | . 14 14 Ballistic Gun 22 | . 23 21 Launcher 3 | . 3 7 Peak Build Rating 11 | 9 10 11 Average Rating 8 | 4 8 9 On Entrance 6 | . 9 10 Naked Turns . | . . . Heaviest Build 15 | 13 15 15 Greatest Support 26 | 26 26 16 Greatest Overweight (x) 1 | . 1 . Average Overweight (x) . | . . . Largest Inventory Capacity 8 | 8 8 8 Average Capacity 7 | 6 8 8 Most Carried 8 | 4 7 8 Average Carried 4 | 1 4 6 Final Capacity 8 | 8 8 8 Final Carried 7 | 1 6 7 Class Distribution -------------------- 100% | Mutant Dominant Class ---------------- Mutant | -10/Materials Mutant | -10/Mines Resources | -11 -10 -10 ----------- Run | Yrd Mat Min Matter Collected 540 | 184 356 . Remotely . | . . . Salvage Created 452 | 44 408 . Parts 51 | 7 44 . Haulers Intercepted 1 | . 1 . Recyclers Shooed . | . . . Parts Field Recycled . | . . . Retrieved Matter . | . . . Parts Self-Destructed . | . . . Prevented . | . . . Kills | -11 -10 -10 ------- Run | Yrd Mat Min Combat Hostiles Destroyed 12 | . 12 . Guns 5 | . 5 . AOE 7 | . 7 . Classes Destroyed 8 | 1 7 . Worker 1 | . 1 . Builder 1 | . 1 . Tunneler 3 | 2 1 . Hauler 1 | . 1 . Operator 1 | . 1 . Watcher 1 | . 1 . Swarmer 3 | . 3 . Grunt 9 | . 9 . Best Kill Streak 5 | 2 5 . Combat Bots Only 3 | . 3 . Max Kills in Single Turn 3 | 1 3 . Gunslinging 1 | . 1 . Exploded 2 | . 2 . Melee . | . . . Uniques/NPCs Destroyed . | . . . Combat | -11 -10 -10 -------- Run | Yrd Mat Min Hostile Shots Fired 40 | . 30 10 Missed 5 | . 4 1 Damage Taken 788 | . 342 446 Core 266 | . 70 196 Absorbed by Shields . | . . . Core Remaining (%) 100 | 100 . . Volleys Fired 47 | 7 39 1 Largest 2 | 2 2 2 Hottest 63 | 40 50 63 Shots Fired 86 | 14 70 2 Gun 76 | 14 62 . Cannon . | . . . Launcher 10 | . 8 2 Special . | . . . Kinetic 76 | 14 62 . Thermal . | . . . Explosive 10 | . 8 2 Electromagnetic . | . . . Robot Hit Streak 11 | 11 10 4 Robot Miss Streak 8 | 3 8 . Penetration Max . | . . . Secondary Targets 1 | . 1 . Max Gunslinging Chain 1 | . 1 . Shots Hit Robots 55 | 11 42 2 Core Hits 38 | 3 31 4 Critical Kills . | . . . Critical Parts Destroyed . | . . . Critical Strikes . | . . . Melee Attacks . | . . . Impact . | . . . Slashing . | . . . Piercing . | . . . Sneak Attacks . | . . . Combat Hostiles . | . . . Follow-up Attacks . | . . . Damage Inflicted 1066 | 82 948 36 Guns 513 | 82 431 . Cannons . | . . . Explosions 553 | . 517 36 Melee . | . . . Ramming . | . . . Kinetic 513 | 82 431 . Thermal . | . . . Explosive 553 | . 517 36 Electromagnetic . | . . . Impact . | . . . Slashing . | . . . Piercing . | . . . Highest Corruption . | . . . Average Corruption . | . . . Corruption Purged . | . . . Corruption Blocked . | . . . Overload Shots . | . . . Overflow Damage 20 | . 20 . Projectiles . | . . . Explosions 20 | . 20 . Melee . | . . . Knockbacks . | . . . Impact . | . . . Kinetic . | . . . Secondary . | . . . Self-Inflicted Damage 31 | . 31 . Shots 3 | . 3 . Rammed . | . . . Targets Rammed . | . . . Kicked . | . . . Crushed . | . . . Highest Temperature 10 | . 10 9 Average Temperature 6 | . 6 6 Received Heat Transfer 165 | . 165 . Siege Activations . | . . . Robots Corrupted . | . . . Combat Hostiles . | . . . Parts Fried . | . . . Impact Corruptions . | . . . Robots Melted . | . . . Combat Hostiles . | . . . Parts Melted . | . . . Heat Transferred . | . . . Parts Sabotaged . | . . . Parts Stolen . | . . . Parts Stripped . | . . . Power Chain Reactions . | . . . Alert | -11 -10 -10 ------- Run | Yrd Mat Min Peak Influence 366 | 10 366 130 Initial 130 | . 6 130 Average 169 | 1 190 126 Maximum Alert Level 1 | . 1 . Low Security (%) 52 | 100 44 100 Level 1 47 | . 55 . Level 2 . | . . . Level 3 . | . . . Level 4 . | . . . Level 5 . | . . . High Security . | . . . Max Security . | . . . Squads Dispatched 1 | . 1 . Investigation . | . . . Extermination . | . . . Reinforcement 1 | . 1 . Assault . | . . . Garrison . | . . . Intercept . | . . . Searches Triggered . | . . . Construction Impeded . | . . . Haulers Reinforced . | . . . Active Scanning Responses . | . . . Cargo Convoy Interrupts . | . . . Stealth | -11 -10 -10 --------- Run | Yrd Mat Min Distress Signals 1 | . 1 . Communications Jammed . | . . . Distress Signals . | . . . Times Spotted 25 | . 23 2 Peak Tracking Total 4 | . 4 2 Tactical Retreats 3 | . 3 . Traps | -11 -10 -10 ------- Run | Yrd Mat Min Traps Triggered 1 | . 1 . Indirectly . | . . . Trap Hack Attempts . | . . . Triggered . | . . . Disarmed . | . . . Reprogrammed . | . . . Reused . | . . . Traps Extracted . | . . . Installed . | . . . Triggered . | . . . Machines | -11 -10 -10 ---------- Run | Yrd Mat Min Machines Disabled 3 | . 3 . Max in Single Turn 2 | . 2 . Machines Repaired . | . . . Machines Dismantled . | . . . Machines Sabotaged . | . . . Overloaded Fab Kills . | . . . Hacking | -11 -10 -10 --------- Run | Yrd Mat Min Machines Accessed 8 | . 8 . Terminals 6 | . 6 . Fabricators . | . . . Repair Stations . | . . . Recycling Units 2 | . 2 . Scanalyzers . | . . . Garrison Access . | . . . Total Hacks 18 | . 18 . Successful 10 | . 10 . Failed 8 | . 8 . Catastrophic . | . . . Database Lockouts . | . . . Manual 18 | . 18 . Terminals 13 | . 13 . Fabricators . | . . . Repair Stations . | . . . Recycling Units 5 | . 5 . Scanalyzers . | . . . Garrison Access . | . . . Terminal Hacks . | . . . Fabricator Hacks . | . . . Repair Station Hacks . | . . . Recycling Unit Hacks . | . . . Scanalyzer . | . . . Garrison Access Hacks . | . . . Unauthorized Hacks 10 | . 10 . Terminals 6 | . 6 . Skim 6 | . 6 . Fabricators . | . . . Repair Stations . | . . . Recycling Units 4 | . 4 . Reject 2 | . 2 . Mask 2 | . 2 . Scanalyzers . | . . . Garrison Access . | . . . Data Cores Recovered 1 | . 1 . Used . | . . . Hacking Detections 5 | . 5 . Full Trace Events . | . . . Feedback Events . | . . . Feedback Blocked . | . . . Robot Schematics Acquired . | . . . Robots Built . | . . . Authchips . | . . . Time . | . . . Total Robot Build Rating . | . . . Part Schematics Acquired . | . . . Parts Built . | . . . Authchips . | . . . Time . | . . . Total Part Build Rating . | . . . Parts Repaired . | . . . Time . | . . . Parts Recycled . | . . . Recycled Matter . | . . . Retrieved Matter . | . . . Retrieved Components . | . . . Parts Scanalyzed . | . . . Part Schematics Acquired . | . . . Parts Damaged . | . . . Bothacking | -11 -10 -10 ------------ Run | Yrd Mat Min Used RIF Installer . | . . . Robots Hacked . | . . . Non-combat . | . . . Combat . | . . . Robot Hacks Applied . | . . . Relay Couplers Released . | . . . Fabnet Peak Effective % . | . . . Robots Rewired . | . . . Allies Hacked . | . . . Hacks Repelled . | . . . Allies | -11 -10 -10 -------- Run | Yrd Mat Min Total Allies . | . . . Largest Group . | . . . Highest-Rated Group . | . . . Highest-Rated Ally . | . . . Total Orders . | . . . Ally Attacks . | . . . Total Damage . | . . . Kills . | . . . Allies Corrupted . | . . . Allies Melted . | . . . Intel | -11 -10 -10 ------- Run | Yrd Mat Min Robot Analysis Total . | . . . Derelict Logs Recovered . | . . . Drone Launches . | . . . Drone Recoveries . | . . . Exploration | -11 -10 -10 ------------- Run | Yrd Mat Min Turns Passed 825 | 77 707 41 Spaces Moved 685 | 50 605 30 Core 6 | 6 . . Treads . | . . . Legs . | . . . Wheels 679 | 44 605 30 Hover . | . . . Flight . | . . . Fastest Speed 50 | 50 90 100 Average Speed 91 | 85 91 100 Slowest Speed 100 | 90 100 100 Overloaded Moves . | . . . Propulsion Burnouts . | . . . Robots Hopped . | . . . Cave-ins Triggered . | . . . Exploration Rate (%) 34 | 4 86 14 Regions Visited 2 Branch Regions 1 Pre-discovered Areas 1 | . 1 . Known Exits Taken . | . . . Unknown Exits Taken 2 | 1 1 . Scrap Searched . | . . . Spaces Dug 5 | . 5 . Terrain Destroyed 47 | . 41 6 Melee . | . . . Projectile . | . . . AOE 47 | . 41 6 Terrain Rammed . | . . . Walls Destroyed . | . . . Machines Disabled . | . . . Actions | -11 -10 -10 --------- Run | Yrd Mat Min Total 809 | 73 696 40 Wait 27 | . 23 4 Move 683 | 49 604 30 Hop . | . . . Pick Up 20 | 9 10 1 Fast Attach . | . . . Attach 19 | 7 10 2 Detach 9 | . 7 2 Swap 1 | . 1 . Drop 3 | 1 2 . Fire 47 | 7 39 1 Melee . | . . . Ram . | . . . Kick . | . . . Crush . | . . . Escape Stasis . | . . . Rewire . | . . . Trap . | . . . Miscellaneous . | . . . Route ------- -11/Scrapyard -10/Materials (discovered 6 exits: [*Mat x3] / [*Min x2] / Sub) -10/Mines (discovered 1 exit: Sub) History --------- Turn | Location | Event 2 | -11/Scrapyard | Met Revision 17 20 | -11/Scrapyard | Discovered new exit (range 16) 78 | -11/Scrapyard | Entered Materials 256 | -10/Materials | Discovered new exit (range 16) 305 | -10/Materials | Build established: Mutant 377 | -10/Materials | Discovered new exit (range 15) 419 | -10/Materials | Discovered new exit (range 16) 432 | -10/Materials | Discovered new exit (range 16) 597 | -10/Materials | Discovered new exit (range 5) 624 | -10/Materials | Identified exit to Subcaves 699 | -10/Materials | Learned location of 1 exit from Storage 723 | -10/Materials | Learned location of Storage (-7) 737 | -10/Materials | Learned 4 Subcaves zone layouts 772 | -10/Materials | Learned 2 Materials zone layouts 785 | -10/Materials | Entered Mines 786 | -10/Mines | Assembled infested the area 791 | -10/Mines | Assisted by a Guerilla fighting off Assembled 792 | -10/Mines | Received a Rocket Launcher from a helpful Derelict 819 | -10/Mines | Core integrity fell below 50% 823 | -10/Mines | Core integrity fell below 20% 826 | -10/Mines | Destroyed by D-53 Grenadier with Mini Grenade Launcher Last Messages --------------- rocket launcher goes a long way." 00790_ 12-81N(g): "Need to get rid of a swarm? Done. Need a big hole in the wall? Done." 00791_ 12-81N(g): "Need a small hole in the wall? Leave that to the mining laser wimps, I say!" 00791_ A derelict emerges from the shadows: "You need to get out of here! I've been tracking a group of Assembled to figure out where they're coming from, and they're closing on this area, come on!" 00792_ 12-81N(g): "Would you like a rocket launcher? I know I would if I were you, so I'm going to lend you mine." 00792_ 12-81N(g) slips back into the shadows. 00794_ Acquired Rocket Launcher. 00819_ Imp. Terrain Scanner destroyed. 00821_ Rocket Launcher destroyed. 00821_ Grenade Launcher destroyed. 00826_ Lgt. Nuclear Core destroyed. Map ----- +----------------------------------------------------+ | ?????????????????????????????????????????????? | | ?????????????????????????????????????????????? | | ?????????????????????????????????????????????? | | ?????????????????????????????????????????????? | | ?????????????????????????????????????????????? | | ?????????????????????????????????????????????? | | ?????????????????????????????????????????????? | | ?????????????????????????????????????????????? | | ?????????????????????????????????????????????? | | ?????????????????????????????????????????????? | | ???????????????????????? ???????????????????? | | ???????????????????????? ###????????????????? | | ????????????????????????"% ##???????????????? | | ??????????????????????##% ### ???????????? | | ??????????????#??????## ???????????? | | ????????????????????## ???????????? | | ????????????????????? ????????????? | | ???????????????#????? d ??#??????????? | | ?????????????????????? #?????? ??????? | | ????????#????????????? d ##???? ??????? | | ??????????????##?????## #?? ??????? | | ???????????????????### ## ???????? | | ????????#???????#### #??? ??????? | | ???????????#???## ## #???????????? | | ??????????????## #????????????? | | ?????????????## @ #?#??????????? | | ??????????????# # ##????????????? | | ??????????????# #?????????????? | | ??????????????# # ##????????????? | | ??????????????## ## ##?????????????? | | ???????????????## # #??????????????? | | ????#???????????## ## #??????????????? | | ?????????????????## ### #?#????????????? | | ??????????#???????# #?## #?????????????? | | ??????????#???????# #???# ?? ?????????? | | ??????????????????##a##????# ????????????? | | ???????????????????# #?????? ???????????? | | ???????????????????# #?????? ???????????? | | ??????????????#????# #?????? ????????????? | | ??????????#????????# #??????? ???????????????? | | ???????#??????????? #???????????????????????? | | ?????????????????#?###???????????????????????? | | ?????????????????????????????????????????????? | | ?????????????????????????????????????????????? | | ?????????????????????????????????????????????? | | ?????????????????????????????????????????????? | | ?????????????????????????????????????????????? | | ?????????????????????????????????????????????? | | ?????????????????????????????????????????????? | | ?????????????????????????????????????????????? | +----------------------------------------------------+ Best States ------------- Heat Dissipation 25 Energy Generation 14 Energy Capacity 250 Matter Stores 260 Matter Capacity 300 Sight Range 16 Terrain Scan Range 16 Terrain Scan Density 10 Evasion (%) 42 Item Schematics ----------------- None Robot Schematics ------------------ None Fabricated ------------ Nothing Alien Tech Used ----------------- None Achievements -------------- None Challenges ------------ None Game ------ Seed VisualServoDrivehammer Manual? 0 Play Time 00:16:42 Cumulative 11.8 hours Start 2024.10.02 @ 17:39:24 End 2024.10.02 @ 17:57:53 Sessions 1 Manual Loads 0 Difficulty Rogue Special Mode None Game No. 31 Rogue 31 Adventurer 0 Explorer 0 Win Type - Total 0 Types 0/0/0/0/0/0/0/0/0 Lore% 11 Gallery% 10 Achievement% 14 Wizard Run 0 Options --------- Layout 1 ASCII 0 Keyboard 1 Movement Numpad Keybinds 0 Fullscreen 2 Font 32/SmallcapsGlow Map View 50x35 Zoom Use 0% Tactical HUD 1 Map Filters NONE Filters NONE Steam 1 RUN: 76b5ff25-f124-4aa3-828a-23dea6b6a197